Workbook

Sheet Extrato de Fluxo de Caixa
B1: Fluxo de CaixaExtrato
B3: Início do ano fiscal: | D3: (Pré) Início | E3: =UPPER(TEXT(DatadeIníciodoAnoFiscal,"MMM")) -> JAN | F3: =UPPER(TEXT(EOMONTH(DatadeIníciodoAnoFiscal,1),"MMM")) -> FEV | G3: =UPPER(TEXT(EOMONTH(DatadeIníciodoAnoFiscal,2),"MMM")) -> MAR | H3: =UPPER(TEXT(EOMONTH(DatadeIníciodoAnoFiscal,3),"MMM")) -> ABR | I3: =UPPER(TEXT(EOMONTH(DatadeIníciodoAnoFiscal,4),"MMM")) -> MAI | J3: =UPPER(TEXT(EOMONTH(DatadeIníciodoAnoFiscal,5),"MMM")) -> JUN | K3: =UPPER(TEXT(EOMONTH(DatadeIníciodoAnoFiscal,6),"MMM")) -> JUL | L3: =UPPER(TEXT(EOMONTH(DatadeIníciodoAnoFiscal,7),"MMM")) -> AGO | M3: =UPPER(TEXT(EOMONTH(DatadeIníciodoAnoFiscal,8),"MMM")) -> SET | N3: =UPPER(TEXT(EOMONTH(DatadeIníciodoAnoFiscal,9),"MMM")) -> OUT | O3: =UPPER(TEXT(EOMONTH(DatadeIníciodoAnoFiscal,10),"MMM")) -> NOV | P3: =UPPER(TEXT(EOMONTH(DatadeIníciodoAnoFiscal,11),"MMM")) -> DEZ | R3: Total
B4: 2012-01-05 | D4: EST | E4: =DatadeIníciodoAnoFiscal -> 2012-01-05 | F4: =EOMONTH(E4,0)+DAY(DatadeIníciodoAnoFiscal) -> 2012-02-05 | G4: =EOMONTH(F4,0)+DAY(DatadeIníciodoAnoFiscal) -> 2012-03-05 | H4: =EOMONTH(G4,0)+DAY(DatadeIníciodoAnoFiscal) -> 2012-04-05 | I4: =EOMONTH(H4,0)+DAY(DatadeIníciodoAnoFiscal) -> 2012-05-05 | J4: =EOMONTH(I4,0)+DAY(DatadeIníciodoAnoFiscal) -> 2012-06-05 | K4: =EOMONTH(J4,0)+DAY(DatadeIníciodoAnoFiscal) -> 2012-07-05 | L4: =EOMONTH(K4,0)+DAY(DatadeIníciodoAnoFiscal) -> 2012-08-05 | M4: =EOMONTH(L4,0)+DAY(DatadeIníciodoAnoFiscal) -> 2012-09-05 | N4: =EOMONTH(M4,0)+DAY(DatadeIníciodoAnoFiscal) -> 2012-10-05 | O4: =EOMONTH(N4,0)+DAY(DatadeIníciodoAnoFiscal) -> 2012-11-05 | P4: =EOMONTH(O4,0)+DAY(DatadeIníciodoAnoFiscal) -> 2012-12-05 | R4: EST Item
B6: Dinheiro em Caixa (início do mês) | D6: 100 | E6: =D48 -> 100 | F6: =E48 -> -125 | G6: 45 | H6: -1 | I6: 224 | J6: 269 | K6: 269 | L6: 269 | M6: 269 | N6: 269 | O6: 269 | P6: 269 | R6: =P6 -> 269
B8: Recibos de Caixa
B9: Vendas em Dinheiro | E9: 125 | F9: 120 | G9: 130 | H9: 100 | R9: =SUM(Recibos[[#This Row],[Período 0]:[Período 12]]) -> 475
B10: Cobranças de contas correntes | H10: 75 | I10: 45 | R10: =SUM(Recibos[[#This Row],[Período 0]:[Período 12]]) -> 120
B11: Empréstimo/outra injeção de dinheiro | E11: 50 | F11: 50 | G11: 50 | H11: 50 | R11: =SUM(Recibos[[#This Row],[Período 0]:[Período 12]]) -> 200
B12: Total | D12: =SUBTOTAL(109,Recibos[Período 0]) -> 0 | E12: =SUBTOTAL(109,Recibos[Período 1]) -> 175 | F12: =SUBTOTAL(109,Recibos[Período 2]) -> 170 | G12: =SUBTOTAL(109,Recibos[Período 3]) -> 180 | H12: =SUBTOTAL(109,Recibos[Período 4]) -> 225 | I12: =SUBTOTAL(109,Recibos[Período 5]) -> 45 | J12: =SUBTOTAL(109,Recibos[Período 6]) -> 0 | K12: =SUBTOTAL(109,Recibos[Período 7]) -> 0 | L12: =SUBTOTAL(109,Recibos[Período 8]) -> 0 | M12: =SUBTOTAL(109,Recibos[Período 9]) -> 0 | N12: =SUBTOTAL(109,Recibos[Período 10]) -> 0 | O12: =SUBTOTAL(109,Recibos[Período 11]) -> 0 | P12: =SUBTOTAL(109,Recibos[Período 12]) -> 0 | R12: =SUBTOTAL(109,Recibos[Total]) -> 795
B13: Total Disponível em Dinheiro (antes do recolhimento do dinheiro do caixa) | D13: =D6+SUM(Recibos[Período 0]) -> 100 | E13: =E6+SUM(Recibos[Período 1]) -> 275 | F13: =F6+SUM(Recibos[Período 2]) -> 45 | G13: =G6+SUM(Recibos[Período 3]) -> 225 | H13: =H6+SUM(Recibos[Período 4]) -> 224 | I13: =I6+SUM(Recibos[Período 5]) -> 269 | J13: =J6+SUM(Recibos[Período 6]) -> 269 | K13: =K6+SUM(Recibos[Período 7]) -> 269 | L13: =L6+SUM(Recibos[Período 8]) -> 269 | M13: =M6+SUM(Recibos[Período 9]) -> 269 | N13: =N6+SUM(Recibos[Período 10]) -> 269 | O13: =O6+SUM(Recibos[Período 11]) -> 269 | P13: =P6+SUM(Recibos[Período 12]) -> 269 | R13: =R6+SUM(Recibos[Total]) -> 1064
B15: Caixa Recolhido
B16: Compras (mercadorias) | E16: 400 | G16: 226 | R16: =SUM(DinheiroPago[[#This Row],[Período 0]:[Período 12]]) -> 626
B17: Compras (especificar) | R17: =SUM(DinheiroPago[[#This Row],[Período 0]:[Período 12]]) -> 0
B18: Compras (especificar) | R18: =SUM(DinheiroPago[[#This Row],[Período 0]:[Período 12]]) -> 0
B19: Salários brutos (retirada exata) | R19: =SUM(DinheiroPago[[#This Row],[Período 0]:[Período 12]]) -> 0
B20: Despesas de folha de pagamento (impostos, etc.) | R20: =SUM(DinheiroPago[[#This Row],[Período 0]:[Período 12]]) -> 0
B21: Serviços externos | R21: =SUM(DinheiroPago[[#This Row],[Período 0]:[Período 12]]) -> 0
B22: Suprimentos (escritório e operacionais) | R22: =SUM(DinheiroPago[[#This Row],[Período 0]:[Período 12]]) -> 0
B23: Reparos e manutenção | R23: =SUM(DinheiroPago[[#This Row],[Período 0]:[Período 12]]) -> 0
B24: Propaganda | R24: =SUM(DinheiroPago[[#This Row],[Período 0]:[Período 12]]) -> 0
B25: Carro, entregas e viagens | R25: =SUM(DinheiroPago[[#This Row],[Período 0]:[Período 12]]) -> 0
B26: Contabilidade e jurídico | R26: =SUM(DinheiroPago[[#This Row],[Período 0]:[Período 12]]) -> 0
B27: Aluguel | R27: =SUM(DinheiroPago[[#This Row],[Período 0]:[Período 12]]) -> 0
B28: Telefone | R28: =SUM(DinheiroPago[[#This Row],[Período 0]:[Período 12]]) -> 0
B29: Serviços essenciais | R29: =SUM(DinheiroPago[[#This Row],[Período 0]:[Período 12]]) -> 0
B30: Seguro | R30: =SUM(DinheiroPago[[#This Row],[Período 0]:[Período 12]]) -> 0
B31: Impostos (imóveis, etc.) | R31: =SUM(DinheiroPago[[#This Row],[Período 0]:[Período 12]]) -> 0
B32: Juros | R32: =SUM(DinheiroPago[[#This Row],[Período 0]:[Período 12]]) -> 0
B33: Outras despesas (especificar) | R33: =SUM(DinheiroPago[[#This Row],[Período 0]:[Período 12]]) -> 0
B34: Outras (especificar) | R34: =SUM(DinheiroPago[[#This Row],[Período 0]:[Período 12]]) -> 0
B35: Outras (especificar) | R35: =SUM(DinheiroPago[[#This Row],[Período 0]:[Período 12]]) -> 0
B36: Diversos | R36: =SUM(DinheiroPago[[#This Row],[Período 0]:[Período 12]]) -> 0
B37: Total | D37: =SUBTOTAL(109,DinheiroPago[Período 0]) -> 0 | E37: =SUBTOTAL(109,DinheiroPago[Período 1]) -> 400 | F37: =SUBTOTAL(109,DinheiroPago[Período 2]) -> 0 | G37: =SUBTOTAL(109,DinheiroPago[Período 3]) -> 226 | H37: =SUBTOTAL(109,DinheiroPago[Período 4]) -> 0 | I37: =SUBTOTAL(109,DinheiroPago[Período 5]) -> 0 | J37: =SUBTOTAL(109,DinheiroPago[Período 6]) -> 0 | K37: =SUBTOTAL(109,DinheiroPago[Período 7]) -> 0 | L37: =SUBTOTAL(109,DinheiroPago[Período 8]) -> 0 | M37: =SUBTOTAL(109,DinheiroPago[Período 9]) -> 0 | N37: =SUBTOTAL(109,DinheiroPago[Período 10]) -> 0 | O37: =SUBTOTAL(109,DinheiroPago[Período 11]) -> 0 | P37: =SUBTOTAL(109,DinheiroPago[Período 12]) -> 0 | R37: =SUBTOTAL(109,DinheiroPago[Total]) -> 626
B39: Caixa Recolhido (Não P&L)
B40: Pagamento de capital do empréstimo | R40: =SUM(DinheiroPago2[[#This Row],[Período 0]:[Período 12]]) -> 0
B41: Compra de capital (especificar) | R41: =SUM(DinheiroPago2[[#This Row],[Período 0]:[Período 12]]) -> 0
B42: Outros custos iniciais | R42: =SUM(DinheiroPago2[[#This Row],[Período 0]:[Período 12]]) -> 0
B43: Reserva e/ou caução | R43: =SUM(DinheiroPago2[[#This Row],[Período 0]:[Período 12]]) -> 0
B44: Saque dos proprietários | R44: =SUM(DinheiroPago2[[#This Row],[Período 0]:[Período 12]]) -> 0
B45: Total | D45: =SUBTOTAL(109,DinheiroPago2[Período 0]) -> 0 | E45: =SUBTOTAL(109,DinheiroPago2[Período 1]) -> 0 | F45: =SUBTOTAL(109,DinheiroPago2[Período 2]) -> 0 | G45: =SUBTOTAL(109,DinheiroPago2[Período 3]) -> 0 | H45: =SUBTOTAL(109,DinheiroPago2[Período 4]) -> 0 | I45: =SUBTOTAL(109,DinheiroPago2[Período 5]) -> 0 | J45: =SUBTOTAL(109,DinheiroPago2[Período 6]) -> 0 | K45: =SUBTOTAL(109,DinheiroPago2[Período 7]) -> 0 | L45: =SUBTOTAL(109,DinheiroPago2[Período 8]) -> 0 | M45: =SUBTOTAL(109,DinheiroPago2[Período 9]) -> 0 | N45: =SUBTOTAL(109,DinheiroPago2[Período 10]) -> 0 | O45: =SUBTOTAL(109,DinheiroPago2[Período 11]) -> 0 | P45: =SUBTOTAL(109,DinheiroPago2[Período 12]) -> 0
B46: Total do Caixa Recolhido | D46: =SUM(DinheiroPago[Período 0],DinheiroPago2[Período 0]) -> 0 | E46: =SUM(DinheiroPago[Período 1],DinheiroPago2[Período 1]) -> 400 | F46: =SUM(DinheiroPago[Período 2],DinheiroPago2[Período 2]) -> 0 | G46: =SUM(DinheiroPago[Período 3],DinheiroPago2[Período 3]) -> 226 | H46: =SUM(DinheiroPago[Período 4],DinheiroPago2[Período 4]) -> 0 | I46: =SUM(DinheiroPago[Período 5],DinheiroPago2[Período 5]) -> 0 | J46: =SUM(DinheiroPago[Período 6],DinheiroPago2[Período 6]) -> 0 | K46: =SUM(DinheiroPago[Período 7],DinheiroPago2[Período 7]) -> 0 | L46: =SUM(DinheiroPago[Período 8],DinheiroPago2[Período 8]) -> 0 | M46: =SUM(DinheiroPago[Período 9],DinheiroPago2[Período 9]) -> 0 | N46: =SUM(DinheiroPago[Período 10],DinheiroPago2[Período 10]) -> 0 | O46: =SUM(DinheiroPago[Período 11],DinheiroPago2[Período 11]) -> 0 | P46: =SUM(DinheiroPago[Período 12],DinheiroPago2[Período 12]) -> 0 | R46: =SUM(DinheiroPago[Total],DinheiroPago2[Total]) -> 626
B48: Situação do Caixa (fim do mês) | D48: =D13-D46 -> 100 | E48: -125 | F48: 45 | G48: -1 | H48: 224 | I48: 269 | J48: 269 | K48: 269 | L48: 269 | M48: 269 | N48: 269 | O48: 269 | P48: 269 | R48: =R13-R46 -> 438
